bitfinex/quotes_BTCUSD_20220205
["timestamp","ask_amount","ask_price","bid_price","bid_amount"]
[1644088734101,0.048,41680.0,41676.0,0.00027671]
[1644088734303,0.048,41680.0,41676.0,0.00071207]
[1644088734502,0.048,41680.0,41676.0,0.00098878]
[1644088735146,0.048,41680.0,41676.0,0.00071207]
[1644088735445,0.048,41680.0,41679.0,0.21043164]
[1644088735743,0.41387615,41687.0,41679.0,0.54951051]
[1644088736343,0.24361028,41685.0,41679.0,0.21043164]
[1644088736547,0.24361028,41685.0,41677.0,0.00027671]
[1644088736548,0.004911,41684.0,41677.0,0.00027671]
[1644088736745,0.004911,41684.0,41681.0,0.00071201]
[1644088737748,0.004911,41684.0,41679.0,0.00027671]
[1644088737944,0.004911,41684.0,41680.0,0.00071202]
[1644088738145,0.41387615,41687.0,41680.0,0.00071202]
[1644088738788,0.41387615,41687.0,41679.0,0.00027671]
[1644088738991,0.41387615,41687.0,41678.0,0.02018056]
[1644088739194,0.19864272,41685.0,41681.0,0.00071201]
[1644088739591,0.41387615,41687.0,41681.0,0.00071201]
[1644088740194,0.41387615,41687.0,41682.0,0.000712]
[1644088740395,0.1223,41687.0,41682.0,0.000712]
[1644088740593,0.27019775,41683.0,41682.0,0.000712]
[1644088741196,0.27019775,41683.0,41679.0,0.00027671]
[1644088741394,0.33966205,41682.0,41678.0,0.05027671]
[1644088741592,0.33966205,41682.0,41680.0,0.00071202]
[1644088742437,0.33966205,41682.0,41679.0,0.00027671]
[1644088742637,0.33966205,41682.0,41679.0,0.00071203]
[1644088742838,0.33966205,41682.0,41679.0,0.00098874]
[1644088743740,0.33966205,41682.0,41679.0,0.00027671]
[1644088743940,0.33966205,41682.0,41678.0,0.05098875]
[1644088744343,0.33966205,41682.0,41678.0,0.30279343]
[1644088744541,0.33966205,41682.0,41678.0,0.30109062]
[1644088744742,0.33966205,41682.0,41678.0,0.30126048]
[1644088744942,0.33966205,41682.0,41678.0,0.05027671]
[1644088745144,0.33966205,41682.0,41678.0,0.05098875]
[1644088746041,0.33966205,41682.0,41678.0,0.05027671]
[1644088746288,0.33966205,41682.0,41678.0,0.05098875]
[1644088746888,0.33900342,41682.0,41678.0,0.05098875]
[1644088747289,0.33900342,41682.0,41678.0,0.05027671]
[1644088747488,0.33900342,41682.0,41678.0,0.05098875]
[1644088748491,0.33900342,41682.0,41678.0,0.05027671]
[1644088748689,0.33900342,41682.0,41678.0,0.05098875]
[1644088749692,0.33900342,41682.0,41678.0,0.05027671]
[1644088749940,0.33900342,41682.0,41678.0,0.05098875]
[1644088752044,0.33900342,41682.0,41678.0,0.05027671]
[1644088752244,0.33900342,41682.0,41678.0,0.05098875]
[1644088753346,0.33900342,41682.0,41678.0,0.05027671]
[1644088753551,0.33900342,41682.0,41678.0,0.05098875]
[1644088754592,0.33900342,41682.0,41678.0,0.05027671]
[1644088754791,0.33900342,41682.0,41678.0,0.05098875]
[1644088754993,0.33900342,41682.0,41678.0,0.10071204]
[1644088755191,0.33900342,41682.0,41678.0,0.05071204]
[1644088755390,0.33900342,41682.0,41678.0,0.10071204]
[1644088755591,0.33900342,41682.0,41678.0,0.32745172]
[1644088755794,0.33900342,41682.0,41678.0,0.32673968]
[1644088755994,0.33900342,41682.0,41678.0,0.32745172]
[1644088756893,0.33900342,41682.0,41678.0,0.1]
[1644088757093,0.33900342,41682.0,41678.0,0.10071204]
[1644088757943,0.33900342,41682.0,41678.0,0.36067688]
[1644088758143,0.33900342,41682.0,41678.0,0.35996484]
[1644088758343,0.33900342,41682.0,41678.0,0.36067688]
[1644088759345,0.33900342,41682.0,41678.0,0.1]
[1644088759546,0.33900342,41682.0,41678.0,0.10071204]
[1644088760547,0.33900342,41682.0,41678.0,0.1]
[1644088760745,0.33900342,41682.0,41678.0,0.30071286]
[1644088761389,0.33900342,41682.0,41678.0,0.10071204]
[1644088761789,0.33900342,41682.0,41678.0,0.1]
[1644088761989,0.33900342,41682.0,41678.0,0.05296336]
[1644088762190,0.004911,41681.0,41678.0,0.05296336]
[1644088762390,0.19946971,41679.0,41678.0,0.05296336]
[1644088762590,0.33900342,41682.0,41678.0,0.05296336]
[1644088762791,0.004911,41681.0,41678.0,0.05296336]
[1644088762992,0.06781139,41681.0,41678.0,0.00225132]
[1644088763198,0.38136959,41680.0,41678.0,0.00225132]
[1644088763394,0.30697568,41679.0,41678.0,0.00225132]
[1644088763591,0.35497568,41679.0,41678.0,0.00225132]
[1644088765846,0.35497568,41679.0,41676.0,0.00071151]
[1644088766044,0.004911,41677.0,41676.0,0.00071151]
[1644088766244,0.37402465,41677.0,41676.0,0.00071151]
[1644088766443,0.37402465,41677.0,41673.0,0.01821378]
[1644088766643,0.37402465,41677.0,41674.0,0.00071154]
[1644088767443,0.37282026,41675.0,41674.0,0.00071154]
[1644088767646,0.052911,41675.0,41671.0,0.25133964]
[1644088767846,0.048,41675.0,41672.0,0.00071156]
[1644088768247,0.16479506,41682.0,41674.0,0.05]
[1644088768446,0.34294531,41687.0,41679.0,0.05]
[1644088768447,0.16479506,41684.0,41679.0,0.05]
[1644088768705,0.004911,41683.0,41680.0,0.3]
[1644088768894,0.004911,41683.0,41680.0,0.05]
[1644088769094,0.24247805,41682.0,41679.0,0.00071148]
[1644088769695,0.28433586,41686.0,41680.0,0.05]
[1644088770096,0.28433586,41686.0,41681.0,0.05]
[1644088770294,0.28433586,41686.0,41681.0,0.05071147]
[1644088770894,0.50724949,41686.0,41681.0,0.05071147]
[1644088771294,0.50724949,41686.0,41681.0,0.05]
[1644088771495,0.50724949,41686.0,41681.0,0.05071146]
[1644088772098,0.28433586,41686.0,41681.0,0.05071146]
[1644088772540,0.28433586,41686.0,41681.0,0.05]
[1644088772742,0.28433586,41686.0,41681.0,0.05071146]
[1644088773139,0.27053505,41685.0,41681.0,0.05071146]
[1644088773341,0.28433586,41686.0,41681.0,0.00071146]
[1644088773540,0.28433586,41686.0,41681.0,0.05071146]
[1644088773741,0.28433586,41686.0,41679.0,0.2543941]
[1644088773942,0.28433586,41686.0,41681.0,0.00071146]
[1644088774239,0.28433586,41686.0,41681.0,0.05071146]
[1644088774240,0.22523441,41685.0,41681.0,0.05071146]
[1644088774440,0.28433586,41686.0,41681.0,0.05071146]
[1644088774941,0.28433586,41686.0,41681.0,0.05]
[1644088775139,0.28433586,41686.0,41681.0,0.05071146]
[1644088776201,0.28433586,41686.0,41681.0,0.05]
[1644088776395,0.28433586,41686.0,41681.0,0.05071146]
[1644088777300,0.28433586,41686.0,41678.0,0.2937155]
[1644088777495,0.28433586,41686.0,41681.0,0.00071146]
[1644088778196,0.28433586,41686.0,41681.0,0.05071146]
[1644088778495,0.28433586,41686.0,41681.0,0.05]
[1644088778698,0.28433586,41686.0,41681.0,0.05071146]
[1644088779697,0.28433586,41686.0,41681.0,0.05]
[1644088779950,0.28433586,41686.0,41681.0,0.05071146]
[1644088780952,0.28433586,41686.0,41681.0,0.05]
[1644088781150,0.28433586,41686.0,41681.0,0.00068687]
[1644088781351,0.28433586,41686.0,41681.0,0.05068687]
[1644088781952,0.28433586,41686.0,41681.0,0.050963]
[1644088782152,0.28433586,41686.0,41681.0,0.05027613]
[1644088782353,0.28433586,41686.0,41681.0,0.38047194]
[1644088783254,0.28433586,41686.0,41681.0,0.37978507]
[1644088783454,0.23423267,41687.0,41681.0,0.38047194]
[1644088784587,0.23423267,41687.0,41681.0,0.37978507]
[1644088784789,0.23423267,41687.0,41682.0,0.00071145]
[1644088785690,0.23423267,41687.0,41681.0,0.37978507]
[1644088785889,0.23423267,41687.0,41682.0,0.00071145]
[1644088786993,0.23423267,41687.0,41681.0,0.37978507]
[1644088787195,0.23423267,41687.0,41682.0,0.00071145]
[1644088788045,0.23423267,41687.0,41681.0,0.37950894]
[1644088788245,0.23423267,41687.0,41682.0,0.00071145]
[1644088789346,0.23423267,41687.0,41681.0,0.37950894]
[1644088789547,0.45872776,41694.0,41682.0,0.00071145]
[1644088789747,0.3644,41694.0,41682.0,0.00071145]
[1644088790547,0.3644,41694.0,41681.0,0.37950894]
[1644088790748,0.37909017,41688.0,41685.0,0.00071142]
[1644088790950,0.004911,41687.0,41685.0,0.00071142]
[1644088791193,0.37909017,41688.0,41685.0,0.00071142]
[1644088791794,0.37909017,41688.0,41681.0,0.37950894]
[1644088791993,0.37909017,41688.0,41684.0,0.00071143]
[1644088792996,0.37909017,41688.0,41681.0,0.37950894]
[1644088793192,0.37909017,41688.0,41684.0,0.00071143]
[1644088794193,0.37909017,41688.0,41681.0,0.37950894]
[1644088794394,0.004911,41687.0,41684.0,0.00071143]
[1644088794593,0.37909017,41688.0,41684.0,0.00071143]
[1644088795347,0.37909017,41688.0,41681.0,0.37950894]
[1644088795552,0.37909017,41688.0,41684.0,0.00071143]
[1644088796549,0.37909017,41688.0,41681.0,0.37950894]
[1644088796750,0.37909017,41688.0,41684.0,0.00071143]
[1644088797749,0.37909017,41688.0,41681.0,0.37950894]
[1644088797950,0.37909017,41688.0,41684.0,0.00071143]
[1644088798893,0.37909017,41688.0,41681.0,0.37950894]
[1644088799094,0.37909017,41688.0,41684.0,0.00071143]
[1644088799695,0.004911,41687.0,41684.0,0.00071143]
[1644088800093,0.004911,41687.0,41680.0,0.2627326]
[1644088800294,0.37909017,41688.0,41683.0,0.00071144]
[1644088800496,0.004911,41687.0,41683.0,0.00071144]
[1644088800699,0.37909017,41688.0,41683.0,0.00071144]
[1644088801294,0.37909017,41688.0,41681.0,0.05]
[1644088801495,0.37909017,41688.0,41683.0,0.00071144]
[1644088802453,0.37909017,41688.0,41681.0,0.05]
[1644088802652,0.37909017,41688.0,41683.0,0.00071144]
[1644088803753,0.37909017,41688.0,41681.0,0.05]
[1644088803955,0.37909017,41688.0,41683.0,0.00071144]
[1644088804954,0.37909017,41688.0,41681.0,0.05]
[1644088805154,0.37909017,41688.0,41683.0,0.00071144]
[1644088806198,0.37909017,41688.0,41682.0,0.25348979]
[1644088806398,0.37909017,41688.0,41683.0,0.00071144]
[1644088807398,0.37909017,41688.0,41682.0,0.25348979]
[1644088807599,0.37909017,41688.0,41683.0,0.00071144]
[1644088808606,0.37909017,41688.0,41681.0,0.05]
[1644088808801,0.37909017,41688.0,41683.0,0.00071144]
[1644088809703,0.37909017,41688.0,41681.0,0.05]
[1644088809954,0.37909017,41688.0,41683.0,0.00071144]
[1644088810955,0.37909017,41688.0,41681.0,0.05]
[1644088811160,0.37909017,41688.0,41683.0,0.00071144]
[1644088812056,0.37909017,41688.0,41679.0,0.67723614]
[1644088812258,0.37909017,41688.0,41683.0,0.00071144]
[1644088813157,0.004911,41687.0,41683.0,0.00071144]
[1644088813358,0.004911,41687.0,41679.0,0.30028966]
[1644088813561,0.37909017,41688.0,41683.0,0.00071144]
[1644088813799,0.004911,41687.0,41683.0,0.00071144]
[1644088814396,0.37909017,41688.0,41683.0,0.00071144]
[1644088814597,0.37909017,41688.0,41682.0,0.05]
[1644088814798,0.37909017,41688.0,41683.0,0.25960507]
[1644088814996,0.37909017,41688.0,41683.0,0.25075887]
[1644088815196,0.37909017,41688.0,41683.0,0.00071144]
[1644088815398,0.37909017,41688.0,41684.0,0.27299973]
[1644088815996,0.37909017,41688.0,41684.0,0.27371116]
[1644088816796,0.37909017,41688.0,41684.0,0.00071143]
[1644088817000,0.37909017,41688.0,41683.0,0.25262942]
[1644088817199,0.37909017,41688.0,41684.0,0.00071143]
[1644088817659,0.004911,41687.0,41684.0,0.00071143]
[1644088818058,0.37909017,41688.0,41682.0,0.2514897]
[1644088818259,0.37909017,41688.0,41683.0,0.00071144]
[1644088819058,0.37489761,41688.0,41683.0,0.00071144]
[1644088819260,0.37489761,41688.0,41682.0,0.2514897]
[1644088819458,0.37489761,41688.0,41683.0,0.00071144]
[1644088820459,0.37489761,41688.0,41680.0,0.21897024]
[1644088820661,0.37489761,41688.0,41683.0,0.00066418]
[1644088821703,0.37489761,41688.0,41682.0,0.05]
[1644088821899,0.37489761,41688.0,41683.0,0.00066418]
[1644088822905,0.37489761,41688.0,41682.0,0.05]
[1644088823105,0.37489761,41688.0,41683.0,0.00066418]
[1644088824109,0.37489761,41688.0,41680.0,0.21897024]
[1644088824305,0.37489761,41688.0,41683.0,0.00066418]
[1644088825348,0.20827022,41697.0,41682.0,0.05]
[1644088825550,0.3763,41698.0,41686.0,0.05]
[1644088825551,0.00066717,41696.0,41686.0,0.05]
[1644088825750,0.00066717,41696.0,41687.0,0.24942235]
[1644088825948,0.004911,41695.0,41686.0,0.05]
[1644088826147,0.004911,41695.0,41689.0,0.05]
[1644088826348,0.40257686,41691.0,41690.0,0.22112771]
[1644088826547,0.40257686,41691.0,41684.0,0.61956357]
[1644088826751,0.40257686,41691.0,41686.0,0.00066737]
[1644088827648,0.40257686,41691.0,41689.0,0.27682239]
[1644088827848,0.40257686,41691.0,41690.0,0.25788227]
[1644088828048,0.40257686,41691.0,41690.0,0.30788227]
[1644088828247,0.40257686,41691.0,41690.0,0.05]
[1644088828448,0.40257686,41691.0,41690.0,0.25747212]
[1644088828724,0.40257686,41691.0,41690.0,0.30747212]
[1644088829220,0.7,41688.0,41676.0,0.22830529]
[1644088829421,0.7,41688.0,41685.0,0.01988395]
[1644088829422,0.15,41686.0,41685.0,0.01988395]
[1644088829619,0.09527819,41685.0,41668.0,0.00266948]
[1644088829818,0.004911,41684.0,41668.0,0.00266948]
[1644088830019,0.05,41669.0,41668.0,0.00266948]
[1644088830218,0.22018796,41668.0,41661.0,0.01]
[1644088830616,0.05,41666.0,41661.0,0.01]
[1644088830815,0.052911,41667.0,41661.0,0.01]
[1644088830816,0.048,41665.0,41661.0,0.01]
[1644088831116,0.004911,41664.0,41661.0,0.01]
[1644088831313,0.048,41663.0,41661.0,0.01]
[1644088831513,0.004911,41662.0,41661.0,0.01]
[1644088831714,0.004911,41662.0,41661.0,0.24439459]
[1644088832447,0.0957088,41666.0,41661.0,0.01]
[1644088832747,0.39262163,41666.0,41661.0,0.01]
[1644088833148,0.0957088,41666.0,41661.0,0.01]
[1644088833547,0.0857088,41666.0,41661.0,0.01]
[1644088833947,0.0857088,41666.0,41661.0,0.01070925]
[1644088834949,0.0857088,41666.0,41661.0,0.01]
[1644088835150,0.0857088,41666.0,41661.0,0.01070925]
[1644088836051,0.0857088,41666.0,41661.0,0.01]
[1644088836296,0.0857088,41666.0,41661.0,0.01070925]
[1644088837297,0.0857088,41666.0,41661.0,0.01]
[1644088837496,0.0357088,41666.0,41661.0,0.01070925]
[1644088838496,0.0357088,41666.0,41661.0,0.01]
[1644088838696,0.0357088,41666.0,41661.0,0.01070925]
[1644088839097,0.0857088,41666.0,41661.0,0.01070925]
[1644088839298,0.0357088,41666.0,41661.0,0.01070925]
[1644088839799,0.0357088,41666.0,41661.0,0.01]
[1644088840071,0.0357088,41666.0,41661.0,0.01070925]
[1644088840871,0.0357088,41666.0,41661.0,0.01]
[1644088841071,0.0357088,41666.0,41661.0,0.01070925]
[1644088841972,0.28523588,41665.0,41661.0,0.01070925]
[1644088842176,0.048,41664.0,41661.0,0.01]
[1644088842371,0.048,41663.0,41661.0,0.01]
[1644088842571,0.05,41666.0,41661.0,0.01]
[1644088842771,0.048,41662.0,41661.0,0.01]
[1644088842971,0.29065349,41662.0,41661.0,0.01]
[1644088843372,0.048,41662.0,41661.0,0.01]
[1644088843998,0.048,41662.0,41661.0,0.005]
[1644088844398,0.27221432,41662.0,41661.0,0.005]
[1644088845500,0.32221432,41662.0,41661.0,0.005]
[1644088846101,0.098,41662.0,41661.0,0.005]
[1644088846300,0.048,41662.0,41661.0,0.005]
[1644088847101,0.25505926,41662.0,41661.0,0.005]
[1644088847304,0.57433958,41662.0,41661.0,0.005]
[1644088847559,0.25505926,41662.0,41661.0,0.005]
[1644088847749,0.35505926,41662.0,41661.0,0.005]
[1644088847950,0.21289579,41662.0,41661.0,0.005]
[1644088848150,0.048,41662.0,41661.0,0.005]
[1644088849149,0.28937784,41662.0,41661.0,0.005]
[1644088850552,0.048,41662.0,41661.0,0.005]
[1644088851603,0.32138269,41662.0,41661.0,0.005]
[1644088852203,0.27338269,41662.0,41661.0,0.005]
[1644088853810,0.55649427,41662.0,41661.0,0.005]
[1644088854007,0.55788611,41662.0,41661.0,0.005]
[1644088854707,0.28302328,41662.0,41661.0,0.005]
[1644088854949,0.33779579,41667.0,41661.0,0.005]
[1644088854950,0.29658889,41666.0,41661.0,0.005]
[1644088855552,0.29658889,41666.0,41661.0,0.00570874]
[1644088855751,0.23501826,41665.0,41661.0,0.00570874]
[1644088856649,0.23501826,41665.0,41661.0,0.00570875]
[1644088857651,0.23501826,41665.0,41661.0,0.005]
[1644088857858,0.23501826,41665.0,41661.0,0.00570875]
[1644088858452,0.05,41664.0,41661.0,0.00570875]
[1644088858702,0.23501826,41665.0,41661.0,0.00570875]
[1644088858898,0.23501826,41665.0,41661.0,0.005]
[1644088859398,0.23501826,41665.0,41661.0,0.00527561]
[1644088860300,0.23501826,41665.0,41661.0,0.005]
[1644088861103,0.7,41664.0,41660.0,0.00027561]
[1644088861302,0.23501826,41665.0,41659.0,0.0011]
[1644088863349,0.65,41664.0,41655.0,0.25737425]
[1644088863550,0.65,41664.0,41656.0,0.00027561]
[1644088863752,0.65,41664.0,41655.0,0.25764986]
[1644088863953,0.65,41664.0,41657.0,0.00070824]
[1644088864953,0.65,41664.0,41656.0,0.00027561]
[1644088865153,0.65,41664.0,41658.0,0.00070823]
[1644088866200,0.65,41664.0,41656.0,0.00027561]
[1644088866398,0.65,41664.0,41659.0,0.00070822]
[1644088867398,0.65,41664.0,41656.0,0.00027561]
[1644088867697,0.65,41664.0,41659.0,0.00070822]
[1644088868499,0.65,41664.0,41656.0,0.00027561]
[1644088868697,0.65,41664.0,41659.0,0.00070822]
[1644088869699,0.05,41663.0,41656.0,0.00027561]
[1644088869948,0.65,41664.0,41659.0,0.00070822]
[1644088870952,0.65,41664.0,41656.0,0.00027561]
[1644088871148,0.65,41664.0,41659.0,0.00070822]
[1644088872152,0.65,41664.0,41656.0,0.00027561]
[1644088872350,0.65,41664.0,41659.0,0.00070822]
[1644088873252,0.65,41664.0,41656.0,0.00027561]
[1644088873456,0.65,41664.0,41655.0,0.21127425]
[1644088873705,0.65,41664.0,41659.0,0.00070822]
[1644088874500,0.65,41664.0,41656.0,0.00027561]
[1644088874701,0.65,41664.0,41655.0,0.21127425]
[1644088874902,0.65,41664.0,41655.0,0.21099864]
[1644088875605,0.65,41664.0,41655.0,0.001]
[1644088875904,0.65,41664.0,41657.0,0.00070769]
[1644088875905,0.05,41662.0,41657.0,0.00070769]
[1644088876306,0.05,41658.0,41657.0,0.00070769]
[1644088876507,0.098,41658.0,41657.0,0.00070769]
[1644088876904,0.098,41658.0,41655.0,0.001]
[1644088877308,0.36388524,41657.0,41655.0,0.001]
[1644088877557,0.048,41656.0,41655.0,0.001]
[1644088877756,0.7,41655.0,41651.0,0.013]
[1644088878058,0.7,41655.0,41651.0,0.001]
[1644088878059,0.7,41652.0,41651.0,0.001]
[1644088878256,0.748,41652.0,41651.0,0.001]
[1644088878856,0.96081671,41652.0,41651.0,0.001]
[1644088879258,0.26081671,41652.0,41651.0,0.001]
[1644088879460,0.048,41652.0,41651.0,0.001]
[1644088880458,0.28974689,41652.0,41651.0,0.001]
[1644088880657,0.048,41652.0,41651.0,0.001]
[1644088881809,0.05,41658.0,41651.0,0.001]
[1644088882003,0.16494905,41660.0,41651.0,0.001]
[1644088882004,0.048,41657.0,41651.0,0.001]
[1644088882203,0.16494905,41660.0,41651.0,0.001]
[1644088882204,0.16494905,41660.0,41651.0,0.00127504]
[1644088882405,0.5604,41661.0,41651.0,0.00127504]
[1644088882804,0.21473857,41656.0,41651.0,0.00127504]
[1644088883203,0.21473857,41656.0,41654.0,0.0007072]
[1644088884202,0.21473857,41656.0,41652.0,0.00027504]
[1644088884503,0.21473857,41656.0,41653.0,0.00070721]
[1644088885354,0.35,41655.0,41650.0,0.00607504]
[1644088885556,0.35,41655.0,41652.0,0.00070722]
[1644088886361,0.05,41653.0,41652.0,0.00070722]
[1644088886558,0.048,41653.0,41650.0,0.00607504]
[1644088886756,0.048,41653.0,41651.0,0.00070723]
[1644088886957,0.05,41652.0,41651.0,0.00070723]
[1644088887157,0.048,41653.0,41651.0,0.00070723]
[1644088887555,0.05,41652.0,41651.0,0.00070723]
[1644088887756,0.05,41652.0,41650.0,0.00607504]
[1644088887956,0.05,41652.0,41650.0,0.00678228]
[1644088888355,0.27925982,41651.0,41650.0,0.00678228]
[1644088888557,0.27456811,41651.0,41650.0,0.00678228]
[1644088889008,0.27456811,41651.0,41650.0,0.00607504]
[1644088889210,0.048,41653.0,41650.0,0.00607504]
[1644088890605,0.048,41653.0,41650.0,0.00635008]
[1644088891612,0.048,41653.0,41650.0,0.00607504]
[1644088891809,0.05,41651.0,41650.0,0.00635008]
[1644088892007,0.05,41651.0,41650.0,0.00607504]
[1644088894854,0.4,41650.0,41647.0,0.00192874]
[1644088895258,0.05,41648.0,41647.0,0.00192874]
[1644088896706,0.4,41650.0,41647.0,0.00192874]
[1644088899108,0.05,41654.0,41647.0,0.00192874]
[1644088899310,0.33384905,41655.0,41647.0,0.00192874]
[1644088899514,0.1689,41655.0,41647.0,0.00192874]
[1644088899709,0.33384905,41655.0,41647.0,0.00192874]
[1644088899952,0.1689,41655.0,41647.0,0.00192874]
[1644088900153,0.33384905,41655.0,41647.0,0.00192874]
[1644088900654,0.1689,41655.0,41647.0,0.00192874]
[1644088901154,0.2189,41655.0,41647.0,0.00192874]
[1644088901556,0.1709,41655.0,41647.0,0.00192874]
[1644088902058,0.1209,41655.0,41647.0,0.00192874]
[1644088902657,0.1209,41655.0,41647.0,0.40689579]
[1644088904107,0.05,41653.0,41647.0,0.40689579]
[1644088904507,0.1209,41655.0,41647.0,0.40689579]
[1644088907554,0.05,41653.0,41647.0,0.40689579]
[1644088907754,0.1709,41655.0,41647.0,0.40689579]
[1644088907955,0.1209,41655.0,41648.0,0.25573089]
[1644088908156,0.1209,41655.0,41648.0,0.30573089]
[1644088908359,0.00070652,41660.0,41648.0,0.35573089]
[1644088908955,0.20696896,41658.0,41648.0,0.45573089]
[1644088909156,0.00070652,41660.0,41648.0,0.45573089]
[1644088909357,0.5604,41661.0,41648.0,0.2]
[1644088909658,0.00070653,41660.0,41648.0,0.2]
[1644088909859,0.00070653,41660.0,41648.0,0.20027394]
[1644088910156,0.23820757,41659.0,41654.0,0.39978326]
[1644088910357,0.23820757,41659.0,41654.0,0.6731703]
[1644088910557,0.23820757,41659.0,41654.0,0.44978326]
[1644088911410,0.00070655,41660.0,41654.0,0.44978326]
[1644088911810,0.16494905,41662.0,41654.0,0.44978326]
[1644088911811,0.28644905,41664.0,41654.0,0.44978326]
[1644088912010,0.00070656,41660.0,41654.0,0.44978326]
[1644088912211,0.00070656,41660.0,41654.0,0.05]
[1644088912414,0.25135418,41659.0,41654.0,0.29694364]
[1644088912611,0.25135418,41659.0,41654.0,0.24694364]
[1644088912810,0.25135418,41659.0,41654.0,0.29694364]
[1644088913514,0.25135418,41659.0,41654.0,0.60410407]
[1644088914314,0.25135418,41659.0,41654.0,0.35716043]
[1644088914514,0.25135418,41659.0,41654.0,0.05]
[1644088914715,0.25135418,41659.0,41649.0,0.00027394]
[1644088914956,0.25135418,41659.0,41648.0,0.16977394]
[1644088915155,0.25135418,41659.0,41648.0,0.05027394]
[1644088915355,0.25135418,41659.0,41653.0,0.22527728]
[1644088915553,0.25135418,41659.0,41653.0,0.62428177]
[1644088915954,0.00026167,41660.0,41653.0,0.62428177]
[1644088916555,0.05,41663.0,41653.0,0.27527728]
[1644088916755,0.3107781,41662.0,41648.0,0.00027394]
[1644088916955,0.3107781,41662.0,41647.0,0.00220268]
[1644088916956,0.05,41656.0,41647.0,0.00220268]
[1644088917757,0.05,41656.0,41647.0,0.19984481]
[1644088917758,0.27654724,41652.0,41647.0,0.19984481]
[1644088919507,0.27654724,41652.0,41647.0,0.19975386]
[1644088920111,0.27654724,41652.0,41647.0,0.00211173]
[1644088922760,0.05,41656.0,41647.0,0.25651222]
[1644088922955,0.05,41656.0,41647.0,0.25151965]
[1644088923155,0.05,41656.0,41647.0,0.2517936]
[1644088923558,0.05,41656.0,41650.0,0.3600795]
[1644088923757,0.27987229,41655.0,41650.0,0.3600795]
[1644088923960,0.1194,41659.0,41650.0,0.3600795]
[1644088924156,0.28434905,41659.0,41650.0,0.3600795]
[1644088924356,0.1194,41659.0,41650.0,0.3600795]
[1644088925159,0.24487584,41656.0,41650.0,0.3600795]
[1644088926308,0.24487584,41656.0,41648.0,0.00027395]
[1644088926309,0.29487584,41656.0,41648.0,0.00027395]
[1644088926507,0.29487584,41656.0,41647.0,0.00027395]
[1644088926709,0.24487584,41656.0,41646.0,0.29235866]
[1644088926910,0.24487584,41656.0,41647.0,0.25402693]
[1644088927107,0.24487584,41656.0,41647.0,0.25430088]
[1644088927308,0.24487584,41656.0,41650.0,0.33757601]
[1644088928313,0.29487584,41656.0,41650.0,0.33757601]
[1644088929112,0.24487584,41656.0,41650.0,0.33757601]
[1644088930467,0.28434905,41659.0,41650.0,0.33757601]
[1644088930663,0.28434905,41659.0,41651.0,0.25928102]
[1644088930866,0.1194,41659.0,41651.0,0.25928102]
[1644088931462,0.1194,41659.0,41657.0,0.35748359]
[1644088931663,0.21312064,41660.0,41657.0,0.34748359]
[1644088932063,0.00070709,41660.0,41657.0,0.34748359]
[1644088932263,0.26494905,41666.0,41657.0,0.34748359]
[1644088932264,0.1,41666.0,41657.0,0.34748359]
[1644088932466,0.0007071,41661.0,41657.0,0.34748359]
[1644088933263,0.0007071,41661.0,41651.0,0.25928102]
[1644088934213,0.0007071,41661.0,41657.0,0.37148771]
[1644088934612,0.26039604,41662.0,41657.0,0.37148771]
[1644088934813,0.0007071,41661.0,41657.0,0.37148771]
[1644088935815,0.26039604,41662.0,41657.0,0.37148771]
[1644088936017,0.0007071,41661.0,41657.0,0.37148771]
[1644088936615,0.0006471,41661.0,41657.0,0.37148771]
[1644088937015,0.26039604,41662.0,41657.0,0.37148771]
[1644088937656,0.26039604,41662.0,41651.0,0.25928102]
[1644088938057,0.23539604,41662.0,41651.0,0.25928102]
[1644088938265,0.23539604,41662.0,41655.0,0.25887561]
[1644088938860,0.23539604,41662.0,41655.0,0.56743873]
[1644088940459,0.23539604,41662.0,41655.0,0.56549273]
[1644088940866,0.00066755,41661.0,41655.0,0.56549273]
[1644088941507,0.00066755,41661.0,41656.0,0.27067621]
[1644088941711,0.00066755,41661.0,41655.0,0.30856312]
[1644088943007,0.23539604,41662.0,41655.0,0.30856312]
[1644088943412,0.00066756,41660.0,41655.0,0.30856312]
[1644088944208,0.23539604,41662.0,41655.0,0.30856312]
[1644088944408,0.00066756,41660.0,41655.0,0.30856312]
[1644088945358,0.07200325,41665.0,41655.0,0.30856312]
[1644088945559,0.00066142,41660.0,41655.0,0.30856312]
[1644088946160,0.00066142,41660.0,41655.0,0.56696959]
[1644088946560,0.2314024,41663.0,41655.0,0.56696959]
[1644088946761,0.2314024,41663.0,41655.0,0.30856312]
[1644088946961,0.00066142,41660.0,41655.0,0.30856312]
[1644088947160,0.00066142,41660.0,41655.0,0.56304714]
[1644088947760,0.2314024,41663.0,41655.0,0.56304714]
[1644088947962,0.00066142,41660.0,41655.0,0.30856312]
[1644088949014,0.2314024,41663.0,41655.0,0.30856312]
[1644088949216,0.00066183,41660.0,41655.0,0.30856312]
[1644088950215,0.2314024,41663.0,41655.0,0.30856312]
[1644088950416,0.00066183,41660.0,41655.0,0.30856312]
[1644088951415,0.2314024,41663.0,41655.0,0.30856312]
[1644088951616,0.00066183,41660.0,41655.0,0.30856312]
[1644088952655,0.2314024,41663.0,41655.0,0.30856312]
[1644088952856,0.00066181,41660.0,41655.0,0.30856312]
[1644088953859,0.2314024,41663.0,41655.0,0.30856312]
[1644088954056,0.00066181,41660.0,41655.0,0.30856312]
[1644088954255,0.00066181,41660.0,41655.0,0.56143994]
[1644088954455,0.00066181,41660.0,41655.0,0.5611567]
[1644088954858,0.00066181,41660.0,41655.0,0.30856312]
[1644088955057,0.05,41659.0,41655.0,0.30856312]
[1644088955456,0.00066181,41660.0,41650.0,0.00027392]
[1644088955659,0.05,41659.0,41649.0,0.00027392]
[1644088955856,0.00066181,41660.0,41648.0,0.00027392]
[1644088956057,0.05,41656.0,41652.0,0.26429289]
[1644088956309,0.05,41655.0,41648.0,0.00027392]
[1644088956614,0.24348014,41656.0,41649.0,0.30392326]
[1644088957007,0.05,41653.0,41649.0,0.30392326]
[1644088957208,0.05,41653.0,41649.0,0.50702289]
[1644088957409,0.24348014,41656.0,41649.0,0.50702289]
[1644088958209,0.24348014,41656.0,41649.0,0.30392326]
[1644088958411,0.24348014,41656.0,41648.0,0.00027392]
[1644088958610,0.24348014,41656.0,41647.0,0.00027392]
[1644088958810,0.29148014,41656.0,41647.0,0.00066198]